fUST/lending_fUST_20260205
["ID","MTS","AMOUNT","RATE_DAILY","PERIOD"]
[404545852,1770275432613,-13668.6908877,0.00025588,2]
[404545853,1770275432623,-2330.0,0.00025597,2]
[404545854,1770275432633,-221.46739067,0.0002563,2]
[404545855,1770275432643,-3180.0,0.00025664,2]
[404545856,1770275432652,-258.19051154,0.00025698,5]
[404545857,1770275432663,-623.20576391,0.00025698,5]
[404545858,1770275432672,-22633.97017795,0.0002573,2]
[404545859,1770275432846,-18372.10248525,0.0002573,2]
[404545860,1770275432860,-500.0,0.00025739,2]
[404545861,1770275432874,-49369.15881537,0.0002574,2]
[404545862,1770275432887,-5795.23943582,0.0002574,2]
[404545863,1770275432900,-69280.09442755,0.0002574,2]
[404545864,1770275432915,-3180.0,0.00025789,2]
[404545865,1770275432930,-160.02,0.000258,7]
[404545866,1770275432944,-181.2,0.000258,7]
[404545867,1770275432955,-3180.0,0.00025822,2]
[404545868,1770275432971,-3180.0,0.00025877,2]
[404545869,1770275432983,-2330.0,0.00025885,2]
[404545870,1770275432997,-151.0,0.000259,12]
[404545871,1770275433011,-151.0,0.000259,12]
[404545872,1770275433026,-151.0,0.000259,13]
[404545873,1770275433040,-148320.20103773,0.00026,2]
[404545874,1770275433059,-561.2739945,0.00026,2]
[404545875,1770275433072,-157706.92249274,0.00026,2]
[404545876,1770275433085,-44258.48323829,0.00026,2]
[404545877,1770275433102,-432.20016903,0.00026,2]
[404545878,1770275433120,-933.0,0.00026,2]
[404545903,1770275437728,-5701.90250092,0.00024879,2]
[404545904,1770275437739,-250.0,0.00024975,2]
[404545905,1770275437750,-250.0,0.00024975,2]
[404545906,1770275437759,-271.64953388,0.00024975,2]
[404545907,1770275437769,-660176.17957677,0.00026,2]
[404545908,1770275437889,-312.0,0.00026,14]
[404545909,1770275437906,-1545.36,0.00026,2]
[404545910,1770275437916,-183973.24062906,0.00026,2]
[404545911,1770275437926,-1000.0,0.00026,6]
[404545912,1770275437938,-151.0,0.00026,11]
[404545913,1770275437947,-167.0,0.00026,7]
[404545914,1770275437957,-487.0,0.00026,2]
[404545915,1770275437969,-487.0,0.00026,2]
[404545916,1770275437979,-487.0,0.00026,2]
[404545917,1770275437989,-487.0,0.00026,2]
[404545918,1770275437999,-487.0,0.00026,2]
[404545919,1770275438009,-487.0,0.00026,2]
[404545920,1770275438020,-487.0,0.00026,2]
[404545921,1770275438029,-487.0,0.00026,2]
[404545922,1770275438039,-701.47,0.00026,2]
[404545923,1770275438048,-300.0,0.00026116,2]
[404545924,1770275438059,-381.0,0.0002665,2]
[404545925,1770275438069,-381.0,0.00026697,7]
[404545926,1770275438078,-3180.0,0.00026766,7]
[404545927,1770275438089,-2330.0,0.00026946,7]
[404545928,1770275438098,-710.0,0.00027,6]
[404545929,1770275438108,-1083.52820316,0.00027123,2]
[404545930,1770275438118,-381.0,0.00027158,2]
[404545931,1770275438128,-260.81803062,0.00027173,2]
[404545932,1770275438138,-1032.76204614,0.00027201,5]
[404545933,1770275438147,-2492.82305563,0.00027201,5]
[404545934,1770275438157,-3180.0,0.00027297,2]
[404545935,1770275438167,-150.0,0.00027397,5]
[404545936,1770275438177,-381.0,0.00027423,2]
[404545937,1770275438187,-381.0,0.00027488,2]
[404545938,1770275438196,-3180.0,0.00027539,2]
[404545939,1770275438207,-381.0,0.00027739,2]
[404545940,1770275438217,-3180.0,0.00027885,2]
[404545941,1770275438227,-152.37298089,0.00027945,5]
[404545942,1770275438237,-1041.66666667,0.00028,3]
[404545943,1770275438247,-1000.0,0.00028,8]
[404545944,1770275438257,-280.43322751,0.00028038,12]
[404545945,1770275438267,-355.0,0.0002826,2]
[404545946,1770275438277,-42598.46868498,0.000285,7]
[404545947,1770275438287,-741.26793723,0.000285,7]
[404545948,1770275438297,-1041.66666667,0.000285,7]
[404545949,1770275438307,-284.17622,0.000285,60]
[404545950,1770275438317,-284.17622,0.000285,30]
[404545951,1770275438326,-305.433231,0.000285,30]
[404545952,1770275438336,-2018.5373055,0.00028616,2]
[404545953,1770275438345,-1924.0724111,0.00028616,2]
[404545954,1770275438354,-950.232,0.0002869,60]
[404545955,1770275438363,-5818.24401517,0.0002876,30]
[404545956,1770275438373,-173.17304942,0.000288,7]
[404545957,1770275438382,-822.98225552,0.00028941,2]
[404545958,1770275438391,-1041.66666667,0.00029,10]
[404545959,1770275438401,-1041.66666667,0.00029,10]
[404545960,1770275438411,-730.608653,0.00029126,60]
[404545961,1770275438421,-288.1129408,0.00029173,2]
[404545962,1770275438431,-741.26793723,0.00029215,7]
[404545963,1770275438441,-450.3965522,0.00029349,2]
[404545964,1770275438451,-429.3185852,0.00029349,2]
[404545965,1770275438461,-1041.66666667,0.000294,7]
[404545966,1770275438471,-341.942512,0.0002944,60]
[404545967,1770275438481,-253.621315,0.0002944,60]
[404545968,1770275438491,-1041.66666667,0.00029789,2]
[404545969,1770275438501,-156.16885059,0.000298,7]
[404545970,1770275438511,-1545.36,0.000298,2]
[404545971,1770275438521,-1926.27236117,0.00029871,2]
[404545972,1770275438532,-2000.0,0.00029933,7]
[404545973,1770275438543,-2988.10279937,0.0003,7]
[404545974,1770275438553,-312.0,0.0003,14]
[404545975,1770275438563,-20000.0,0.0003,4]
[404545976,1770275438573,-216.0,0.0003,20]
[404545977,1770275438583,-1000.0,0.0003,10]
[404545978,1770275438594,-945.63553864,0.0003,14]
[404545979,1770275438605,-14002.0,0.00030137,120]
[404545980,1770275438615,-337.55408668,0.00030148,120]
[404545981,1770275438626,-181.2,0.000302,7]
[404545982,1770275438636,-306.8690357,0.0003099,2]
[404545983,1770275438646,-315.40785098,0.00031173,2]
[404545984,1770275438657,-366.532766,0.00031462,2]
[404545985,1770275438667,-12603.38622309,0.000319,2]
[404545986,1770275438678,-201.18892114,0.00032,2]
[404545987,1770275438689,-2873.69595258,0.00032,2]
[404545988,1770275438700,-3077.7051,0.0003222,30]
[404545989,1770275438710,-1461.6164858,0.00032605,2]
[404545990,1770275438721,-3006.79076376,0.00032619,2]
[404545991,1770275438731,-5206.25020792,0.00033,120]
[404545992,1770275438742,-342.70276116,0.00033173,120]
[404545993,1770275438752,-155.73182908,0.000332,117]
[404545994,1770275438763,-614.05603535,0.00033281,2]
[404545995,1770275438773,-1350.90275319,0.00033281,2]
[404545996,1770275438783,-437.47911715,0.00033281,2]
[404545997,1770275438794,-1514.61168151,0.00033281,2]
[404545998,1770275438805,-1545.36,0.000333,14]
[404545999,1770275438815,-353.94325642,0.00033631,2]
[404546000,1770275438824,-743.96323195,0.00034339,2]
[404546001,1770275438836,-200.0,0.00034427,120]
[404546002,1770275438846,-480.79759264,0.000345,120]
[404546003,1770275438857,-23078.35510898,0.0003479,5]
[404546004,1770275438868,-174.7,0.000349,7]
[404546005,1770275438878,-10791.98110197,0.00035,2]
[404546006,1770275438888,-301400.82655763,0.00035,2]
[404546007,1770275438899,-79570.04220141,0.00035,5]
[404546008,1770275438909,-5783.98821534,0.00035,120]
[404546009,1770275438920,-160.4802408,0.00035,2]
[404546010,1770275438930,-312.0,0.00035,30]
[404546011,1770275438946,-1041.66666667,0.00035,120]
[404546012,1770275438956,-200.0,0.00035,2]
[404546013,1770275438966,-200.0,0.00035,2]
[404546014,1770275438977,-200.0,0.00035,2]
[404546015,1770275438988,-200.0,0.00035,2]
[404546016,1770275438999,-200.0,0.00035,2]
[404546017,1770275439010,-200.0,0.00035,2]
[404546018,1770275439020,-200.0,0.00035,2]
[404546019,1770275439030,-200.0,0.00035,2]
[404546020,1770275439042,-200.0,0.00035,2]
[404546021,1770275439052,-200.0,0.00035,2]
[404546022,1770275439062,-200.0,0.00035,2]
[404546023,1770275439071,-200.0,0.00035,2]
[404546024,1770275439081,-200.0,0.00035,2]
[404546025,1770275439092,-200.0,0.00035,2]
[404546026,1770275439103,-200.0,0.00035,2]
[404546027,1770275439113,-156.98339018,0.00035,2]
[404546028,1770275439122,-159.08917742,0.00035032,2]
[404546029,1770275439132,-153.66767651,0.00035032,2]
[404546030,1770275439141,-369.99767134,0.00035173,120]
[404546031,1770275439151,-386.98499889,0.00035423,2]
[404546032,1770275439160,-4562.33491058,0.0003586,2]
[404546033,1770275439170,-4982.20010766,0.00036,30]
[404546034,1770275439181,-1041.66666667,0.00036,30]
[404546035,1770275439191,-181.2,0.000362,7]
[404546036,1770275439202,-151.96339269,0.000365,120]
[404546037,1770275439212,-160.02,0.000365,7]
[404546038,1770275439224,-151.98,0.00036761,60]
[404546039,1770275439234,-152.01,0.0003679,60]
[404546040,1770275439245,-161.4,0.00036834,60]
[404546041,1770275439255,-151.98,0.00036861,60]
[404546042,1770275439266,-152.01,0.0003689,60]
[404546043,1770275439278,-161.4,0.00036934,60]
[404546044,1770275439288,-151.98,0.00036961,60]
[404546045,1770275439298,-152.01,0.0003699,60]
[404546046,1770275439308,-2046.34840516,0.00037,2]
[404546047,1770275439319,-1447.83988613,0.00037,20]
[404546048,1770275439331,-161.4,0.00037034,60]
[404546050,1770275439341,-150.0,0.0003705,60]
[404546051,1770275439353,-244.406112,0.0003705,60]
[404546052,1770275439364,-338.812224,0.0003705,60]
[404546053,1770275439375,-433.218337,0.0003705,60]
[404546054,1770275439385,-527.624449,0.0003705,60]
[404546055,1770275439395,-622.030562,0.0003705,60]
[404546056,1770275439404,-716.436674,0.0003705,60]
[404546057,1770275439414,-810.842787,0.0003705,60]
[404546058,1770275439423,-905.248899,0.0003705,60]
[404546059,1770275439433,-999.655012,0.0003705,60]
[404546060,1770275439443,-150.0,0.0003705,60]
[404546061,1770275439453,-159.405691,0.0003705,60]
[404546062,1770275439463,-168.811383,0.0003705,60]
[404546063,1770275439475,-178.217075,0.0003705,60]
[404546064,1770275439486,-187.622767,0.0003705,60]
[404546065,1770275439497,-197.028459,0.0003705,60]
[404546066,1770275439507,-206.434151,0.0003705,60]
[404546067,1770275439518,-215.839843,0.0003705,60]
[404546068,1770275439529,-225.245535,0.0003705,60]
[404546069,1770275439540,-151.98,0.00037061,60]
[404546070,1770275439551,-152.04442911,0.0003709,60]
[404546071,1770275439562,-161.4,0.00037134,60]
[404546072,1770275439573,-151.98,0.00037161,60]
[404546073,1770275439583,-397.29258152,0.00037173,120]
[404546074,1770275439595,-161.4,0.00037234,60]
[404546075,1770275439605,-151.98,0.00037261,60]
[404546076,1770275439616,-161.45771079,0.00037334,60]
[404546077,1770275439627,-151.98,0.00037361,60]
[404546078,1770275439637,-151.98,0.00037461,60]
[404546079,1770275439647,-1278.33732699,0.00037489,10]
[404546080,1770275439657,-1236.65613201,0.00037489,10]
[404546081,1770275439667,-1219.41955269,0.00037494,10]
[404546082,1770275439677,-1256.44108983,0.00037494,10]
[404546083,1770275439688,-1140.51352298,0.00037502,10]
[404546084,1770275439698,-151.98,0.00037561,60]
[404546086,1770275439708,-212.0499,0.000376,120]
[404546087,1770275439720,-1545.36,0.000376,14]
[404546088,1770275439730,-151.98,0.00037661,60]
[404546089,1770275439740,-151.98,0.00037761,60]
[404546091,1770275439751,-1022.51568928,0.000378,2]
[404546092,1770275439761,-151.98,0.00037861,60]
[404546093,1770275439771,-151.98,0.00037961,60]
[404546094,1770275439782,-4540.28386646,0.00038,120]
[404546095,1770275439792,-151.98,0.00038061,60]
[404546096,1770275439801,-151.98,0.00038161,60]
[404546097,1770275439811,-312.0,0.000382,30]
[404546098,1770275439821,-151.98,0.00038261,60]
[404546099,1770275439832,-1278.33732699,0.00038278,10]
[404546100,1770275439841,-1236.65613201,0.00038278,10]
[404546101,1770275439851,-1219.41955269,0.00038283,10]
[404546102,1770275439861,-1256.44108983,0.00038283,10]
[404546103,1770275439871,-1140.51352298,0.00038291,10]
[404546104,1770275439880,-354.04,0.00038356,120]
[404546105,1770275439890,-500.0,0.00038356,120]
[404546107,1770275439900,-500.0,0.00038356,120]
[404546109,1770275439909,-500.0,0.00038356,120]
[404546111,1770275439919,-500.0,0.00038356,120]
[404546113,1770275439930,-500.0,0.00038356,120]
[404546121,1770275439942,-500.0,0.00038356,120]
[404546124,1770275440025,-500.0,0.00038356,120]
[404546126,1770275440035,-500.0,0.00038356,120]
[404546128,1770275440045,-500.0,0.00038356,120]
[404546130,1770275440055,-500.0,0.00038356,120]
[404546132,1770275440065,-500.0,0.00038356,120]
[404546133,1770275440075,-500.0,0.00038356,120]
[404546135,1770275440085,-500.0,0.00038356,120]
[404546137,1770275440094,-500.0,0.00038356,120]
[404546139,1770275440104,-500.0,0.00038356,120]
[404546141,1770275440114,-500.0,0.00038356,120]
[404546143,1770275440124,-500.0,0.00038356,120]
[404546145,1770275440134,-500.0,0.00038356,120]
[404546147,1770275440144,-500.0,0.00038356,120]
[404546149,1770275440154,-500.0,0.00038356,120]
[404546150,1770275440164,-500.0,0.00038356,120]
[404546151,1770275440175,-500.0,0.00038356,120]
[404546152,1770275440185,-561.45119714,0.00038356,120]
[404546153,1770275440194,-151.0,0.00038356,2]
[404546154,1770275440204,-151.0,0.00038356,2]
[404546155,1770275440214,-151.0,0.00038356,2]
[404546156,1770275440226,-182.295673,0.00038356,2]
[404546157,1770275440236,-151.98,0.00038361,120]
[404546158,1770275440246,-204.72505305,0.00038367,10]
[404546159,1770275440256,-500.0,0.000384,120]
[404546160,1770275440266,-151.98,0.00038461,120]
[404546161,1770275440276,-151.98,0.00038561,120]
[404546162,1770275440286,-151.98,0.00038661,120]
[404546163,1770275440296,-1041.66666667,0.00038751,3]
[404546164,1770275440306,-151.98,0.00038761,120]
[404546165,1770275440316,-181.2,0.000388,7]
[404546166,1770275440328,-151.98,0.00038861,120]
[404546167,1770275440338,-532.64055291,0.0003887,2]
[404546168,1770275440348,-532.64055291,0.0003887,2]
[404546169,1770275440358,-532.64055291,0.0003887,2]
[404546170,1770275440368,-532.64055291,0.0003887,2]
[404546171,1770275440379,-532.64055291,0.0003887,2]
[404546172,1770275440389,-532.64055291,0.0003887,2]
[404546173,1770275440399,-532.64055291,0.0003887,2]
[404546175,1770275440409,-532.64055291,0.0003887,2]
[404546177,1770275440419,-532.64055291,0.0003887,2]
[404546179,1770275440428,-532.64055291,0.0003887,2]
[404546181,1770275440438,-532.64055291,0.0003887,2]
[404546183,1770275440448,-532.64055291,0.0003887,2]
[404546185,1770275440458,-532.64055291,0.0003887,2]
[404546187,1770275440471,-532.64055291,0.0003887,2]
[404546189,1770275440481,-532.64055291,0.0003887,2]
[404546191,1770275440491,-515.27338834,0.0003887,2]
[404546193,1770275440501,-515.27338834,0.0003887,2]
[404546195,1770275440511,-515.27338834,0.0003887,2]
[404546197,1770275440521,-515.27338834,0.0003887,2]
[404546199,1770275440531,-515.27338834,0.0003887,2]
[404546201,1770275440541,-515.27338834,0.0003887,2]
[404546203,1770275440552,-515.27338834,0.0003887,2]
[404546205,1770275440562,-515.27338834,0.0003887,2]
[404546207,1770275440572,-515.27338834,0.0003887,2]
[404546209,1770275440582,-515.27338834,0.0003887,2]
[404546210,1770275440592,-515.27338834,0.0003887,2]
[404546212,1770275440603,-515.27338834,0.0003887,2]
[404546214,1770275440613,-515.27338834,0.0003887,2]
[404546216,1770275440623,-515.27338834,0.0003887,2]
[404546219,1770275440635,-515.27338834,0.0003887,2]
[404546221,1770275440645,-508.09148029,0.00038875,2]
[404546222,1770275440654,-508.09148029,0.00038875,2]
[404546224,1770275440664,-508.09148029,0.00038875,2]
[404546226,1770275440674,-508.09148029,0.00038875,2]
[404546228,1770275440683,-508.09148029,0.00038875,2]
[404546230,1770275440693,-508.09148029,0.00038875,2]
[404546232,1770275440704,-508.09148029,0.00038875,2]
[404546234,1770275440714,-508.09148029,0.00038875,2]
[404546236,1770275440725,-508.09148029,0.00038875,2]
[404546238,1770275440735,-508.09148029,0.00038875,2]
[404546240,1770275440746,-508.09148029,0.00038875,2]
[404546242,1770275440756,-508.09148029,0.00038875,2]
[404546244,1770275440767,-508.09148029,0.00038875,2]
[404546246,1770275440777,-508.09148029,0.00038875,2]
[404546248,1770275440787,-508.09148029,0.00038875,2]
[404546250,1770275440798,-523.51712076,0.00038875,2]
[404546252,1770275440808,-523.51712076,0.00038875,2]
[404546254,1770275440818,-523.51712076,0.00038875,2]
[404546256,1770275440828,-523.51712076,0.00038875,2]
[404546258,1770275440838,-523.51712076,0.00038875,2]
[404546260,1770275440848,-523.51712076,0.00038875,2]
[404546262,1770275440859,-523.51712076,0.00038875,2]
[404546264,1770275440869,-523.51712076,0.00038875,2]
[404546266,1770275440879,-523.51712076,0.00038875,2]
[404546268,1770275440889,-523.51712076,0.00038875,2]
[404546270,1770275440899,-523.51712076,0.00038875,2]
[404546271,1770275440909,-523.51712076,0.00038875,2]
[404546273,1770275440919,-523.51712076,0.00038875,2]
[404546275,1770275440929,-523.51712076,0.00038875,2]
[404546278,1770275440942,-523.51712076,0.00038875,2]
[404546279,1770275440953,-304638.59248057,0.0003891,2]
[404546281,1770275440964,-151.98,0.00038961,120]
[404546283,1770275440976,-500.0,0.00038986,5]
[404546285,1770275440988,-1481.13516646,0.00039,20]
[404546287,1770275440999,-741.26793723,0.00039,3]
[404546289,1770275441010,-236.66314203,0.00039,120]
[404546292,1770275441021,-10646.64566901,0.00039,120]
[404546293,1770275441032,-414.0,0.00039,30]
[404546295,1770275441042,-151.98,0.00039061,120]
[404546297,1770275441052,-1278.33732699,0.00039068,10]
[404546299,1770275441062,-1236.65613201,0.00039068,10]
[404546301,1770275441072,-1219.41955269,0.00039072,10]
[404546303,1770275441082,-1256.44108983,0.00039072,10]
[404546305,1770275441092,-1140.51352298,0.00039081,10]
[404546307,1770275441101,-151.98,0.00039161,120]
[404546309,1770275441111,-424.58749171,0.00039173,120]
[404546311,1770275441122,-800.0,0.00039237,7]
[404546313,1770275441133,-800.0,0.00039241,7]
[404546315,1770275441142,-800.0,0.00039255,7]
[404546317,1770275441152,-800.0,0.00039257,7]
[404546319,1770275441162,-1000.0,0.0003926,5]
[404546321,1770275441172,-151.98,0.00039261,120]
[404546323,1770275441182,-800.0,0.0003928,7]
[404546325,1770275441191,-800.0,0.00039281,7]
[404546327,1770275441201,-800.0,0.00039287,7]
[404546329,1770275441210,-800.0,0.00039294,7]
[404546331,1770275441222,-800.0,0.00039308,7]
[404546333,1770275441232,-591.11441809,0.00039314,7]
[404546335,1770275441242,-800.0,0.0003932,7]
[404546337,1770275441251,-800.0,0.00039321,7]
[404546338,1770275441262,-800.0,0.00039327,7]
[404546340,1770275441271,-800.0,0.00039344,7]
[404546342,1770275441281,-151.98,0.00039361,120]
[404546344,1770275441290,-800.0,0.00039364,7]
[404546346,1770275441300,-800.0,0.00039414,7]
[404546348,1770275441310,-800.0,0.00039431,7]
[404546350,1770275441320,-800.0,0.00039439,7]
[404546352,1770275441329,-800.0,0.00039444,7]
[404546354,1770275441339,-1500.0,0.00039452,20]
[404546356,1770275441348,-1500.0,0.00039452,20]
[404546358,1770275441358,-1500.0,0.00039452,20]
[404546360,1770275441368,-1500.0,0.00039452,20]
[404546361,1770275441377,-1500.0,0.00039452,20]
[404546364,1770275441388,-1500.0,0.00039452,20]
[404546365,1770275441398,-1500.0,0.00039452,20]
[404546367,1770275441407,-1500.0,0.00039452,20]
[404546369,1770275441417,-1500.0,0.00039452,20]
[404546372,1770275441427,-1500.0,0.00039452,20]
[404546374,1770275441437,-1500.0,0.00039452,20]
[404546375,1770275441447,-1500.0,0.00039452,20]
[404546377,1770275441456,-1042.0,0.00039452,20]
[404546379,1770275441470,-4734.63800408,0.00039452,30]
[404546381,1770275441481,-800.0,0.00039454,7]
[404546383,1770275441491,-2631.47199524,0.0003946,20]
[404546385,1770275441501,-151.98,0.00039461,120]
[404546387,1770275441511,-1278.33732699,0.00039462,10]
[404546389,1770275441521,-1236.65613201,0.00039462,10]
[404546391,1770275441530,-800.0,0.00039464,7]
[404546393,1770275441540,-800.0,0.00039466,7]
[404546395,1770275441550,-1000.0,0.00039466,20]
[404546397,1770275441562,-508.428126,0.00039467,7]
[404546399,1770275441573,-1219.41955269,0.00039467,10]
[404546401,1770275441583,-1256.44108983,0.00039467,10]
[404546403,1770275441593,-3699.70537582,0.00039467,20]
[404546405,1770275441605,-22708.04051446,0.00039467,2]
[404546407,1770275441615,-300.0,0.00039467,2]
[404546409,1770275441626,-22909.18653489,0.00039467,2]
[404546411,1770275441636,-3925.9939258,0.00039467,2]
[404546413,1770275441647,-818.63176731,0.00039467,2]
[404546415,1770275441659,-261.02019832,0.00039467,2]
[404546417,1770275441669,-330.52711615,0.00039467,2]
[404546419,1770275441679,-1812.87180099,0.00039467,2]
[404546421,1770275441689,-294.98755894,0.00039467,2]
[404546423,1770275441699,-52282.13791207,0.00039467,2]
[404546425,1770275441709,-644.1186482,0.00039467,2]
[404546427,1770275441721,-1376.53827121,0.00039467,2]
[404546429,1770275441731,-158.30784758,0.00039467,2]
[404546431,1770275441741,-1156.09605538,0.00039467,2]
[404546433,1770275441751,-13088.41871703,0.00039467,2]
[404546435,1770275441762,-710.13264197,0.00039467,2]
[404546437,1770275441773,-392.98284552,0.00039467,2]
[404546439,1770275441783,-100523.84243148,0.00039467,2]
[404546441,1770275441793,-221.54569044,0.00039467,2]
[404546443,1770275441804,-38901.09772192,0.00039467,2]
[404546445,1770275441821,-70853.09095274,0.00039467,2]
[404546448,1770275441835,-5260.9177667,0.00039467,2]
[404546450,1770275441845,-1000.88564224,0.00039467,2]
[404546452,1770275441856,-20113.94093951,0.00039467,2]
[404546454,1770275441867,-1258.32834445,0.00039467,2]
[404546456,1770275441878,-235.08891047,0.00039467,2]
[404546458,1770275441889,-9032.04278736,0.00039467,2]
[404546460,1770275441899,-150.21359011,0.00039467,2]
[404546468,1770275441983,-74.04282648,0.00039467,2]
[404546470,1770275441996,-124.95925746,0.00039467,2]
[404546472,1770275442006,-300.3015313,0.00039467,2]
[404546474,1770275442016,-5873.47947622,0.00039467,4]
[404546485,1770275442117,-500.0,0.00027539,2]
[404546487,1770275442127,-301.6007455,0.00027813,2]
[404546741,1770275448603,-144.75160248,0.00024989,2]
[404546749,1770275448933,-232.1371531,0.00024989,2]
[404546750,1770275448945,-3176.96,0.0002599,10]
[404546751,1770275448956,-198.3992545,0.00027813,2]
[404546752,1770275448965,-500.0,0.00028087,2]
[404546753,1770275448975,-500.0,0.00028361,2]
[404546754,1770275448986,-234.651227,0.0003705,60]
[404546755,1770275448995,-2014.56919239,0.00039467,4]
[404546756,1770275449009,-2234.66956032,0.00039467,4]
[404546757,1770275449021,-9877.28177107,0.00039467,4]
[404546758,1770275449031,-195.042592,0.00039467,7]
[404546759,1770275449040,-150.0,0.00039467,7]
[404546760,1770275449049,-185.7962936,0.00039467,7]
[404546761,1770275449058,-150.0,0.00039467,7]
[404546762,1770275449067,-195.042592,0.00039467,7]
[404546763,1770275449076,-185.7962936,0.00039467,7]
[404546764,1770275449085,-195.042592,0.00039467,7]
[404546765,1770275449094,-150.0,0.00039467,7]
[404546766,1770275449102,-185.7962936,0.00039467,7]
[404546767,1770275449111,-150.0,0.00039467,7]
[404546768,1770275449120,-195.042592,0.00039467,7]
[404546769,1770275449130,-195.042592,0.00039467,7]
[404546770,1770275449139,-150.0,0.00039467,7]
[404546771,1770275449148,-312.984779,0.00039467,7]
[404546772,1770275449157,-217.3269439,0.00039467,7]
[404546773,1770275449167,-306.0506361,0.00039467,7]
[404546774,1770275449176,-605.09057,0.00039467,7]
[404546775,1770275449185,-1153.9651208,0.00039467,7]
[404546776,1770275449195,-605.09057,0.00039467,7]
[404546777,1770275449205,-195.042592,0.00039467,7]
[404546778,1770275449214,-245.2215986,0.00039467,7]
[404546779,1770275449223,-605.09057,0.00039467,7]
[404546780,1770275449233,-195.042592,0.00039467,7]
[404546781,1770275449242,-605.09057,0.00039467,7]
[404546782,1770275449251,-306.0506361,0.00039467,7]
[404546783,1770275449260,-311.8274502,0.00039467,7]
[404546784,1770275449269,-306.0506361,0.00039467,7]
[404546785,1770275449278,-306.0506361,0.00039467,7]
[404546786,1770275449287,-306.0506361,0.00039467,7]
[404546787,1770275449297,-306.0506361,0.00039467,7]
[404546788,1770275449306,-306.0506361,0.00039467,7]
[404546789,1770275449315,-306.0506361,0.00039467,7]
[404546790,1770275449324,-306.0506361,0.00039467,7]
[404546791,1770275449334,-404.951196,0.00039467,10]
[404546792,1770275449343,-611.8581551,0.00039467,7]
[404546793,1770275449352,-2000.0,0.00039467,20]
[404546794,1770275449362,-800.0,0.0003947,7]
[404546795,1770275449371,-189.12,0.00039475,2]
[404546796,1770275449380,-1140.51352298,0.00039475,10]
[404546797,1770275449389,-800.0,0.0003948,7]
[404546798,1770275449398,-800.0,0.00039487,7]
[404546799,1770275449407,-222.0,0.00039491,20]
[404546800,1770275449416,-1843.83488063,0.00039492,2]
[404546801,1770275449426,-155.0,0.000395,120]
[404546802,1770275449435,-3000.0,0.000395,39]
[404546803,1770275449444,-150.070536,0.000395,2]
[404546804,1770275449453,-800.0,0.00039507,7]
[404546805,1770275449462,-3000.0,0.0003951,39]
[404546806,1770275449552,-3000.0,0.0003952,39]
[404546807,1770275449563,-200.309234,0.00039523,14]
[404546808,1770275449573,-335.0,0.00039523,14]
[404546809,1770275449583,-335.0,0.00039523,14]
[404546810,1770275449592,-335.0,0.00039523,14]
[404546811,1770275449602,-335.0,0.00039523,14]
[404546812,1770275449612,-335.0,0.00039523,14]
[404546813,1770275449621,-335.0,0.00039523,14]
[404546814,1770275449632,-335.0,0.00039523,14]
[404546815,1770275449642,-335.0,0.00039523,14]
[404546816,1770275449651,-335.0,0.00039523,14]
[404546817,1770275449661,-335.0,0.00039523,14]
[404546818,1770275449671,-335.0,0.00039523,14]
[404546819,1770275449680,-335.0,0.00039523,14]
[404546820,1770275449689,-357.14077969,0.00039523,14]
[404546821,1770275449699,-166.0,0.00039523,14]
[404546822,1770275449709,-500.0,0.00039525,2]
[404546823,1770275449719,-3000.0,0.0003953,39]
[404546824,1770275449730,-5406.23552638,0.00039534,20]
[404546825,1770275449739,-3000.0,0.00039534,20]
[404546826,1770275449749,-178.77574947,0.00039534,5]